[Event "*** Titled Tuesday Blitz"]
[Site "Chess.com"]
[Date "2021.04.27"]
[Round "9"]
[White "Chessbard1972"]
[Black "thechesscorner64"]
[Result "0-1"]
[WhiteElo "2246"]
[BlackElo "2378"]
[TimeControl "180+1"]
[EndTime "11:44:48 PDT"]
[Termination "thechesscorner64 won by checkmate"]

1. e4 {[%clk 0:03:00.3]} 1... c5 {[%clk 0:02:57.9]} 2. Nf3 {[%clk 0:02:59]} 2...
e6 {[%clk 0:02:57.8]} 3. d4 {[%clk 0:02:58.7]} 3... cxd4 {[%clk 0:02:52.5]} 4.
Nxd4 {[%clk 0:02:58.3]} 4... a6 {[%clk 0:02:52.3]} 5. c4 {[%clk 0:02:56.5]} 5...
Nf6 {[%clk 0:02:47.9]} 6. Nc3 {[%clk 0:02:55.1]} 6... Qc7 {[%clk 0:02:38.4]} 7.
Be2 {[%clk 0:02:52.8]} 7... Nc6 {[%clk 0:02:35.7]} 8. Be3 {[%clk 0:02:48.5]}
8... Bb4 {[%clk 0:02:15.7]} 9. f3 {[%clk 0:02:44.8]} 9... Ne5 {[%clk 0:02:08.5]}
10. O-O {[%clk 0:02:37.7]} 10... d6 {[%clk 0:02:05]} 11. Rc1 {[%clk 0:02:35.1]}
11... O-O {[%clk 0:02:03.9]} 12. a3 {[%clk 0:02:33.8]} 12... Bc5 {[%clk
0:02:02.9]} 13. b4 {[%clk 0:02:33.2]} 13... Ba7 {[%clk 0:02:02.9]} 14. Qd2
{[%clk 0:02:31]} 14... Bd7 {[%clk 0:02:01.9]} 15. Rfd1 {[%clk 0:02:29.2]} 15...
Rac8 {[%clk 0:01:59]} 16. Kh1 {[%clk 0:02:18.9]} 16... Rfd8 {[%clk 0:01:54.2]}
17. Bf1 {[%clk 0:02:01.2]} 17... Be8 {[%clk 0:01:53]} 18. Qf2 {[%clk 0:02:00.8]}
18... Bb8 {[%clk 0:01:51.3]} 19. g3 {[%clk 0:01:52.6]} 19... h5 {[%clk
0:01:50.3]} 20. h3 {[%clk 0:01:48.2]} 20... Qe7 {[%clk 0:01:45.8]} 21. Bg5
{[%clk 0:01:45.1]} 21... d5 {[%clk 0:01:35.2]} 22. exd5 {[%clk 0:01:40.4]} 22...
Nxc4 {[%clk 0:01:29.6]} 23. dxe6 {[%clk 0:01:30.7]} 23... Ng4 {[%clk 0:01:11.9]}
24. Bxe7 {[%clk 0:01:03]} 24... Nxf2+ {[%clk 0:01:11.7]} 25. Kg2 {[%clk
0:01:03.4]} 25... Nxd1 {[%clk 0:01:12.6]} 26. Bxd8 {[%clk 0:00:53.9]} 26...
Nde3+ {[%clk 0:01:04.5]} 27. Kf2 {[%clk 0:00:47.9]} 27... Rxd8 {[%clk
0:01:04.5]} 28. Nce2 {[%clk 0:00:36.1]} 28... b5 {[%clk 0:00:42.7]} 29. e7
{[%clk 0:00:24.6]} 29... Rc8 {[%clk 0:00:31.6]} 30. Nf4 {[%clk 0:00:19.8]} 30...
Bd6 {[%clk 0:00:20.7]} 31. Nxh5 {[%clk 0:00:17.1]} 31... Bxe7 {[%clk 0:00:20.3]}
32. Bd3 {[%clk 0:00:17.3]} 32... g6 {[%clk 0:00:18.9]} 33. Nf4 {[%clk
0:00:16.9]} 33... Bd7 {[%clk 0:00:14.4]} 34. h4 {[%clk 0:00:16.8]} 34... Kg7
{[%clk 0:00:11]} 35. g4 {[%clk 0:00:16.4]} 35... Bf6 {[%clk 0:00:11.3]} 36. Nde2
{[%clk 0:00:14.4]} 36... Be5 {[%clk 0:00:10.2]} 37. g5 {[%clk 0:00:13.7]} 37...
Bf5 {[%clk 0:00:07.4]} 38. Bxf5 {[%clk 0:00:12.6]} 38... Nxf5 {[%clk 0:00:07.5]}
39. Nd5 {[%clk 0:00:12.3]} 39... Ncd6 {[%clk 0:00:07.7]} 40. Rd1 {[%clk
0:00:11.6]} 40... Rc2 {[%clk 0:00:07]} 41. Ke1 {[%clk 0:00:09.2]} 41... Ra2
{[%clk 0:00:06.2]} 42. f4 {[%clk 0:00:09.1]} 42... Bb2 {[%clk 0:00:04.3]} 43.
Nc7 {[%clk 0:00:06.9]} 43... Ra1 {[%clk 0:00:03.7]} 44. Rxa1 {[%clk 0:00:05.6]}
44... Bxa1 {[%clk 0:00:04.6]} 45. Nxa6 {[%clk 0:00:05.9]} 45... Bb2 {[%clk
0:00:05.2]} 46. Nc7 {[%clk 0:00:04]} 46... Bxa3 {[%clk 0:00:05]} 47. Nc3 {[%clk
0:00:04.5]} 47... Bxb4 {[%clk 0:00:04.9]} 48. Kd2 {[%clk 0:00:05]} 48... Ne4+
{[%clk 0:00:03.6]} 49. Kd3 {[%clk 0:00:05.4]} 49... Nxc3 {[%clk 0:00:04.1]} 50.
Ne8+ {[%clk 0:00:05]} 50... Kf8 {[%clk 0:00:04.2]} 51. Nf6 {[%clk 0:00:05.9]}
51... Ke7 {[%clk 0:00:04.4]} 52. Ng4 {[%clk 0:00:04]} 52... Ke6 {[%clk
0:00:04.6]} 53. h5 {[%clk 0:00:04.3]} 53... gxh5 {[%clk 0:00:04.7]} 54. Ne5
{[%clk 0:00:02.4]} 54... Nd5 {[%clk 0:00:04.8]} 55. g6 {[%clk 0:00:03.3]} 55...
fxg6 {[%clk 0:00:05]} 56. Nxg6 {[%clk 0:00:03]} 56... Kf6 {[%clk 0:00:05.2]} 57.
Ke4 {[%clk 0:00:03.9]} 57... Kxg6 {[%clk 0:00:04.8]} 58. Kxd5 {[%clk 0:00:04.8]}
58... h4 {[%clk 0:00:05.3]} 59. Ke4 {[%clk 0:00:05.7]} 59... h3 {[%clk
0:00:05.7]} 60. Kf3 {[%clk 0:00:06.6]} 60... Kh5 {[%clk 0:00:04.7]} 61. Kf2
{[%clk 0:00:05.8]} 61... Kg4 {[%clk 0:00:05]} 62. Kg1 {[%clk 0:00:06]} 62... Bd6
{[%clk 0:00:05.7]} 63. Kh1 {[%clk 0:00:06.9]} 63... b4 {[%clk 0:00:06.5]} 64.
Kg1 {[%clk 0:00:06.8]} 64... b3 {[%clk 0:00:07.1]} 65. Kh1 {[%clk 0:00:07.7]}
65... b2 {[%clk 0:00:07.6]} 66. Kh2 {[%clk 0:00:08.6]} 66... Kh4 {[%clk
0:00:06.6]} 67. Kg1 {[%clk 0:00:09.5]} 67... b1=Q+ {[%clk 0:00:07.4]} 68. Kh2
{[%clk 0:00:10.4]} 68... Qc2+ {[%clk 0:00:08.1]} 69. Kg1 {[%clk 0:00:09.8]}
69... Qg2# {[%clk 0:00:09]} 0-1

[Event "*** Titled Tuesday Blitz"]
[Site "Chess.com"]
[Date "2021.04.27"]
[Round "9"]
[White "TokChess"]
[Black "mr65"]
[Result "0-1"]
[WhiteElo "2382"]
[BlackElo "2216"]
[TimeControl "180+1"]
[EndTime "11:44:50 PDT"]
[Termination "mr65 won by resignation"]

1. e4 {[%clk 0:03:00.9]} 1... e5 {[%clk 0:02:59.2]} 2. Nf3 {[%clk 0:03:00.4]}
2... Nc6 {[%clk 0:02:59]} 3. Bc4 {[%clk 0:03:00.3]} 3... Nf6 {[%clk 0:02:58.5]}
4. d3 {[%clk 0:02:59.9]} 4... Bc5 {[%clk 0:02:57.6]} 5. O-O {[%clk 0:02:58.8]}
5... O-O {[%clk 0:02:56.9]} 6. Nc3 {[%clk 0:02:58.9]} 6... h6 {[%clk 0:02:56.1]}
7. a4 {[%clk 0:02:58.5]} 7... d6 {[%clk 0:02:53.9]} 8. h3 {[%clk 0:02:58.7]}
8... a5 {[%clk 0:02:52.5]} 9. Be3 {[%clk 0:02:51]} 9... Bxe3 {[%clk 0:02:50.7]}
10. fxe3 {[%clk 0:02:51.9]} 10... Be6 {[%clk 0:02:50.6]} 11. Ba2 {[%clk
0:02:48.8]} 11... Bxa2 {[%clk 0:02:49.2]} 12. Rxa2 {[%clk 0:02:48.6]} 12... d5
{[%clk 0:02:47.7]} 13. exd5 {[%clk 0:02:47.3]} 13... Nxd5 {[%clk 0:02:47.3]} 14.
e4 {[%clk 0:02:32.8]} 14... Ne3 {[%clk 0:02:39.4]} 15. Qd2 {[%clk 0:02:29]}
15... Nxf1 {[%clk 0:02:36.4]} 16. Kxf1 {[%clk 0:02:29.9]} 16... f5 {[%clk
0:02:34.6]} 17. Qe3 {[%clk 0:02:26.1]} 17... fxe4 {[%clk 0:02:31.5]} 18. Nxe4
{[%clk 0:02:19.7]} 18... Nd4 {[%clk 0:02:27.7]} 19. c3 {[%clk 0:02:18.3]} 19...
Nxf3 {[%clk 0:02:25.7]} 20. gxf3 {[%clk 0:02:19.2]} 20... Qd5 {[%clk 0:02:11.2]}
21. c4 {[%clk 0:02:16.8]} 21... Qd4 {[%clk 0:02:08.6]} 22. Qxd4 {[%clk
0:02:11.9]} 22... exd4 {[%clk 0:02:07.5]} 23. Kg2 {[%clk 0:02:11.8]} 23... b6
{[%clk 0:02:04.1]} 24. Ra3 {[%clk 0:02:10.3]} 24... Rf5 {[%clk 0:01:57.8]} 25.
Rb3 {[%clk 0:02:06.3]} 25... Raf8 {[%clk 0:01:55.4]} 26. Nd2 {[%clk 0:02:06.3]}
26... g5 {[%clk 0:01:54.5]} 27. Ra3 {[%clk 0:01:59]} 27... h5 {[%clk 0:01:53.3]}
28. Kg3 {[%clk 0:01:55.7]} 28... Kg7 {[%clk 0:01:41.4]} 29. Ra1 {[%clk 0:01:54]}
29... Kg6 {[%clk 0:01:39.3]} 30. Re1 {[%clk 0:01:53.8]} 30... g4 {[%clk
0:01:37.7]} 31. hxg4 {[%clk 0:01:39.8]} 31... hxg4 {[%clk 0:01:36.4]} 32. fxg4
{[%clk 0:01:37.3]} 32... Rf2 {[%clk 0:01:30.2]} 33. Re6+ {[%clk 0:01:16.5]}
33... R8f6 {[%clk 0:01:26.1]} 34. Rxf6+ {[%clk 0:01:09.1]} 34... Rxf6 {[%clk
0:01:25.4]} 35. Nf3 {[%clk 0:01:03.7]} 35... c5 {[%clk 0:01:21.8]} 36. g5 {[%clk
0:00:34.3]} 36... Re6 {[%clk 0:01:18.3]} 37. Kf4 {[%clk 0:00:34.4]} 37... Re3
{[%clk 0:01:13.9]} 38. Ne5+ {[%clk 0:00:34.6]} 38... Kg7 {[%clk 0:01:11.8]} 39.
Nd7 {[%clk 0:00:33.7]} 39... Rxd3 {[%clk 0:01:11.4]} 40. Nxb6 {[%clk 0:00:34]}
40... Rb3 {[%clk 0:01:10.2]} 41. Nd7 {[%clk 0:00:32.6]} 41... Rb4 {[%clk
0:00:57.8]} 42. Nxc5 {[%clk 0:00:19.7]} 42... Rxc4 {[%clk 0:00:55.7]} 43. Nb7
{[%clk 0:00:07.5]} 43... Rxa4 {[%clk 0:00:54]} 44. Ke4 {[%clk 0:00:07.9]} 44...
Kg6 {[%clk 0:00:50.3]} 45. Nc5 {[%clk 0:00:07.1]} 45... Rb4 {[%clk 0:00:49.8]}
46. b3 {[%clk 0:00:02]} 46... Kxg5 {[%clk 0:00:47.1]} 47. Ne6+ {[%clk
0:00:02.4]} 47... Kf6 {[%clk 0:00:46]} 48. Nxd4 {[%clk 0:00:03.3]} 48... Ke7
{[%clk 0:00:45.7]} 49. Kd3 {[%clk 0:00:03.6]} 49... Kd6 {[%clk 0:00:44.5]} 50.
Kc3 {[%clk 0:00:03.7]} 50... Kc5 {[%clk 0:00:42.1]} 51. Ne6+ {[%clk 0:00:03.5]}
51... Kb6 {[%clk 0:00:39.8]} 52. Nd4 {[%clk 0:00:03.2]} 52... Kc5 {[%clk
0:00:37.8]} 53. Ne6+ {[%clk 0:00:03.3]} 53... Kd6 {[%clk 0:00:37.5]} 54. Nd4
{[%clk 0:00:03.1]} 54... Kd5 {[%clk 0:00:37.1]} 55. Nf5 {[%clk 0:00:02.3]} 55...
Rf4 {[%clk 0:00:32.9]} 56. Ne3+ {[%clk 0:00:02.4]} 56... Kc5 {[%clk 0:00:32.3]}
57. Nc4 {[%clk 0:00:03]} 57... Rf3+ {[%clk 0:00:30.1]} 58. Kb2 {[%clk
0:00:02.9]} 58... Kb4 {[%clk 0:00:29.7]} 59. Nd2 {[%clk 0:00:03.3]} 59... Rf2
{[%clk 0:00:28.7]} 60. Kc2 {[%clk 0:00:03.5]} 60... Rh2 {[%clk 0:00:25.4]} 61.
Kd3 {[%clk 0:00:04]} 61... Rh3+ {[%clk 0:00:17.9]} 62. Kc2 {[%clk 0:00:04.4]}
62... Rc3+ {[%clk 0:00:17.3]} 63. Kb2 {[%clk 0:00:04.8]} 63... Rd3 {[%clk
0:00:17.2]} 64. Kc2 {[%clk 0:00:05.1]} 64... Rd8 {[%clk 0:00:16.9]} 65. Nc4
{[%clk 0:00:03]} 65... a4 {[%clk 0:00:15.8]} 66. Nb2 {[%clk 0:00:01.1]} 66...
axb3+ {[%clk 0:00:14.9]} 67. Kc1 {[%clk 0:00:01.7]} 67... Rc8+ {[%clk
0:00:14.2]} 68. Kb1 {[%clk 0:00:02.2]} 68... Rh8 {[%clk 0:00:13.3]} 69. Nd3+
{[%clk 0:00:01.9]} 69... Kc3 {[%clk 0:00:12.4]} 70. Nc1 {[%clk 0:00:02.8]} 70...
Rh1 {[%clk 0:00:11.3]} 0-1

[Event "*** Titled Tuesday Blitz"]
[Site "Chess.com"]
[Date "2021.04.27"]
[Round "9"]
[White "Kapibara_Warri0r"]
[Black "djano"]
[Result "1-0"]
[WhiteElo "2254"]
[BlackElo "2462"]
[TimeControl "180+1"]
[EndTime "11:44:51 PDT"]
[Termination "Kapibara_Warri0r won on time"]

1. e4 {[%clk 0:03:00.9]} 1... c6 {[%clk 0:03:00.3]} 2. d4 {[%clk 0:03:00.7]}
2... d5 {[%clk 0:03:01.2]} 3. Nc3 {[%clk 0:03:01.4]} 3... dxe4 {[%clk
0:03:00.2]} 4. Nxe4 {[%clk 0:03:02.3]} 4... Nf6 {[%clk 0:03:00.5]} 5. Nxf6+
{[%clk 0:03:03]} 5... exf6 {[%clk 0:03:01.4]} 6. c3 {[%clk 0:03:03.4]} 6... Bd6
{[%clk 0:03:00.7]} 7. Qf3 {[%clk 0:03:04.1]} 7... O-O {[%clk 0:02:56.4]} 8. Bd3
{[%clk 0:03:04.8]} 8... Re8+ {[%clk 0:02:55.2]} 9. Ne2 {[%clk 0:03:05.4]} 9...
Nd7 {[%clk 0:02:53.5]} 10. O-O {[%clk 0:03:05.9]} 10... Nf8 {[%clk 0:02:52.6]}
11. Bf4 {[%clk 0:03:06.5]} 11... Ng6 {[%clk 0:02:49.9]} 12. Bxd6 {[%clk
0:03:01.5]} 12... Qxd6 {[%clk 0:02:50.8]} 13. Ng3 {[%clk 0:03:01.5]} 13... Be6
{[%clk 0:02:40.4]} 14. b3 {[%clk 0:02:51.1]} 14... b5 {[%clk 0:02:38.7]} 15.
Rfe1 {[%clk 0:02:40.5]} 15... Rad8 {[%clk 0:02:33]} 16. Nf5 {[%clk 0:02:37.5]}
16... Bxf5 {[%clk 0:02:22.2]} 17. Qxf5 {[%clk 0:02:34.5]} 17... b4 {[%clk
0:02:21]} 18. Qf3 {[%clk 0:01:59.2]} 18... bxc3 {[%clk 0:02:16.5]} 19. Bxg6
{[%clk 0:01:59.1]} 19... hxg6 {[%clk 0:02:11.6]} 20. Qxc3 {[%clk 0:01:59.5]}
20... Re6 {[%clk 0:01:51.3]} 21. Rad1 {[%clk 0:01:53.3]} 21... Rde8 {[%clk
0:01:30.1]} 22. Rxe6 {[%clk 0:01:47.8]} 22... Qxe6 {[%clk 0:01:28]} 23. g3
{[%clk 0:01:41.1]} 23... Rd8 {[%clk 0:01:26.2]} 24. Qc4 {[%clk 0:01:29.2]} 24...
Qg4 {[%clk 0:01:19.7]} 25. Rc1 {[%clk 0:01:18.4]} 25... Rd6 {[%clk 0:01:06.6]}
26. Qc5 {[%clk 0:00:57.8]} 26... Rxd4 {[%clk 0:00:51.8]} 27. Qxc6 {[%clk
0:00:58.1]} 27... Rd1+ {[%clk 0:00:34.7]} 28. Rxd1 {[%clk 0:00:58.3]} 28...
Qxd1+ {[%clk 0:00:35.6]} 29. Kg2 {[%clk 0:00:59.1]} 29... Qd8 {[%clk 0:00:29.2]}
30. Qb7 {[%clk 0:00:56.8]} 30... a5 {[%clk 0:00:28.6]} 31. a4 {[%clk 0:00:56.5]}
31... Qd2 {[%clk 0:00:25.4]} 32. Qc8+ {[%clk 0:00:50.6]} 32... Kh7 {[%clk
0:00:24.6]} 33. Qh3+ {[%clk 0:00:48]} 33... Kg8 {[%clk 0:00:24.7]} 34. Qc8+
{[%clk 0:00:48.9]} 34... Kh7 {[%clk 0:00:24.9]} 35. Qc4 {[%clk 0:00:49.1]} 35...
g5 {[%clk 0:00:22.2]} 36. Qe4+ {[%clk 0:00:43.8]} 36... g6 {[%clk 0:00:20.8]}
37. Qc4 {[%clk 0:00:39.4]} 37... Kg7 {[%clk 0:00:20.7]} 38. Qb5 {[%clk
0:00:36.3]} 38... Qc3 {[%clk 0:00:18.8]} 39. Qd5 {[%clk 0:00:35.1]} 39... Qb4
{[%clk 0:00:18.1]} 40. Qc4 {[%clk 0:00:32.6]} 40... Qd2 {[%clk 0:00:17.2]} 41.
h3 {[%clk 0:00:29.5]} 41... f5 {[%clk 0:00:17.1]} 42. Qb5 {[%clk 0:00:27.5]}
42... g4 {[%clk 0:00:15.5]} 43. Qe5+ {[%clk 0:00:27.5]} 43... Kg8 {[%clk
0:00:12.8]} 44. hxg4 {[%clk 0:00:22.8]} 44... fxg4 {[%clk 0:00:13.7]} 45. Qe8+
{[%clk 0:00:22.5]} 45... Kg7 {[%clk 0:00:14.1]} 46. Qe5+ {[%clk 0:00:22.9]}
46... Kf8 {[%clk 0:00:12.8]} 47. Qc5+ {[%clk 0:00:18.9]} 47... Kg8 {[%clk
0:00:12.1]} 48. Qc4 {[%clk 0:00:18]} 48... Qd7 {[%clk 0:00:09.7]} 49. Qb5 {[%clk
0:00:15]} 49... Qd1 {[%clk 0:00:07.2]} 50. Qxa5 {[%clk 0:00:07.9]} 50... Qf3+
{[%clk 0:00:06.9]} 51. Kg1 {[%clk 0:00:08.2]} 51... Qd1+ {[%clk 0:00:07.1]} 52.
Kh2 {[%clk 0:00:08.1]} 52... Qxb3 {[%clk 0:00:07.2]} 53. Qd8+ {[%clk 0:00:07.5]}
53... Kg7 {[%clk 0:00:06]} 54. Qd4+ {[%clk 0:00:07.8]} 54... f6 {[%clk
0:00:05.9]} 55. a5 {[%clk 0:00:07.5]} 55... Qa2 {[%clk 0:00:04.8]} 56. Qa7+
{[%clk 0:00:06.6]} 56... Kh6 {[%clk 0:00:04.7]} 57. a6 {[%clk 0:00:06.8]} 57...
f5 {[%clk 0:00:04.9]} 58. Qe3+ {[%clk 0:00:06.5]} 58... g5 {[%clk 0:00:05.5]}
59. a7 {[%clk 0:00:06.9]} 59... f4 {[%clk 0:00:05.9]} 60. Qb6+ {[%clk
0:00:06.7]} 60... Kh5 {[%clk 0:00:05.7]} 61. Qc5 {[%clk 0:00:01.8]} 61... fxg3+
{[%clk 0:00:06.6]} 62. Kxg3 {[%clk 0:00:02.1]} 62... Qb3+ {[%clk 0:00:06.1]} 63.
Kh2 {[%clk 0:00:02.6]} 63... Qg3+ {[%clk 0:00:06.1]} 64. fxg3 {[%clk 0:00:01.4]}
1-0

[Event "*** Titled Tuesday Blitz"]
[Site "Chess.com"]
[Date "2021.04.27"]
[Round "9"]
[White "GM_dmitrij"]
[Black "Beca95"]
[Result "1-0"]
[WhiteElo "2972"]
[BlackElo "2875"]
[TimeControl "180+1"]
[EndTime "11:45:09 PDT"]
[Termination "GM_dmitrij won by resignation"]

1. e4 {[%clk 0:03:00.9]} 1... c5 {[%clk 0:02:53.5]} 2. Nf3 {[%clk 0:03:00.8]}
2... Nc6 {[%clk 0:02:54.1]} 3. Bb5 {[%clk 0:03:00.5]} 3... e6 {[%clk 0:02:53.9]}
4. O-O {[%clk 0:03:00.2]} 4... Nge7 {[%clk 0:02:53.9]} 5. Re1 {[%clk 0:03:00.6]}
5... a6 {[%clk 0:02:51.2]} 6. Bf1 {[%clk 0:03:00]} 6... d5 {[%clk 0:02:51.4]} 7.
exd5 {[%clk 0:03:00.9]} 7... Qxd5 {[%clk 0:02:51.7]} 8. Na3 {[%clk 0:02:47.5]}
8... Nf5 {[%clk 0:02:51.3]} 9. Nc4 {[%clk 0:02:42.1]} 9... Qd8 {[%clk
0:02:51.3]} 10. b3 {[%clk 0:02:30.9]} 10... Be7 {[%clk 0:02:50.3]} 11. Bb2
{[%clk 0:02:30.9]} 11... O-O {[%clk 0:02:50.1]} 12. a4 {[%clk 0:02:23.6]} 12...
b6 {[%clk 0:02:50.1]} 13. a5 {[%clk 0:02:14.6]} 13... b5 {[%clk 0:02:49.7]} 14.
Nb6 {[%clk 0:02:14.8]} 14... Ra7 {[%clk 0:02:45]} 15. Bd3 {[%clk 0:02:12.9]}
15... Bb7 {[%clk 0:02:15.4]} 16. Ne5 {[%clk 0:02:12.7]} 16... Nxa5 {[%clk
0:02:10.6]} 17. Nbd7 {[%clk 0:01:53.7]} 17... Re8 {[%clk 0:02:06.4]} 18. Rxa5
{[%clk 0:01:39.3]} 18... Qxa5 {[%clk 0:02:01.1]} 19. Nxf7 {[%clk 0:01:39.7]}
19... Qc7 {[%clk 0:01:47.1]} 20. Qh5 {[%clk 0:01:18.1]} 20... Qxd7 {[%clk
0:01:28.4]} 21. Ne5 {[%clk 0:01:17.3]} 21... g6 {[%clk 0:01:12.4]} 22. Nxg6
{[%clk 0:01:17.3]} 22... Bf6 {[%clk 0:01:07.8]} 23. Bxf6 {[%clk 0:01:10.2]}
23... Qf7 {[%clk 0:01:08]} 24. Bxf5 {[%clk 0:00:58.7]} 24... Qxf6 {[%clk
0:00:53]} 25. Ne5 {[%clk 0:00:44.3]} 25... Re7 {[%clk 0:00:50.6]} 26. Ng4 {[%clk
0:00:43.4]} 26... Qg7 {[%clk 0:00:47.3]} 27. Bxe6+ {[%clk 0:00:36.1]} 27... Kh8
{[%clk 0:00:46.2]} 28. f4 {[%clk 0:00:22.5]} 28... Bc8 {[%clk 0:00:38.3]} 29. f5
{[%clk 0:00:21.4]} 29... Bxe6 {[%clk 0:00:37.8]} 30. fxe6 {[%clk 0:00:22.3]}
30... Ra8 {[%clk 0:00:36.7]} 31. Qxc5 {[%clk 0:00:19.9]} 31... Rae8 {[%clk
0:00:32]} 32. Qf5 {[%clk 0:00:17.4]} 32... Rf8 {[%clk 0:00:29.8]} 33. Qe4 {[%clk
0:00:15.7]} 33... Qg5 {[%clk 0:00:26.6]} 34. h3 {[%clk 0:00:12]} 34... Rf4
{[%clk 0:00:14.9]} 35. Qe3 {[%clk 0:00:10.1]} 35... Rf5 {[%clk 0:00:13.2]} 36.
Qe4 {[%clk 0:00:09.3]} 36... h5 {[%clk 0:00:12.9]} 37. Ne3 {[%clk 0:00:07.9]}
37... Rf6 {[%clk 0:00:11.8]} 38. Qa8+ {[%clk 0:00:05.2]} 38... Kh7 {[%clk
0:00:11.4]} 39. Qxa6 {[%clk 0:00:05.8]} 39... Rexe6 {[%clk 0:00:10.9]} 40. Qb7+
{[%clk 0:00:05.3]} 40... Kh6 {[%clk 0:00:11.3]} 41. Qc8 {[%clk 0:00:04.6]} 41...
Kh7 {[%clk 0:00:09.2]} 42. c4 {[%clk 0:00:04.4]} 42... Rg6 {[%clk 0:00:09.1]}
43. Qb7+ {[%clk 0:00:03.7]} 43... Rg7 {[%clk 0:00:09.5]} 44. Qf3 {[%clk
0:00:04.3]} 44... Rf6 {[%clk 0:00:09.2]} 45. Qe4+ {[%clk 0:00:04.2]} 45... Kh6
{[%clk 0:00:08.9]} 46. Re2 {[%clk 0:00:03.8]} 46... Rgg6 {[%clk 0:00:08.8]} 47.
Kh2 {[%clk 0:00:03.5]} 47... Qg3+ {[%clk 0:00:08.8]} 48. Kg1 {[%clk 0:00:04.1]}
48... Qg5 {[%clk 0:00:08.8]} 49. Rf2 {[%clk 0:00:03.4]} 49... Rxf2 {[%clk
0:00:08.4]} 50. Kxf2 {[%clk 0:00:04.3]} 50... bxc4 {[%clk 0:00:09.1]} 51. bxc4
{[%clk 0:00:04]} 51... Rf6+ {[%clk 0:00:09.5]} 52. Ke2 {[%clk 0:00:04.6]} 52...
Qf4 {[%clk 0:00:08.1]} 53. Qxf4+ {[%clk 0:00:04.5]} 53... Rxf4 {[%clk 0:00:09]}
54. c5 {[%clk 0:00:05.1]} 54... Kg5 {[%clk 0:00:08.6]} 55. Kd3 {[%clk
0:00:04.6]} 55... Kg6 {[%clk 0:00:08.2]} 56. Kc3 {[%clk 0:00:04.6]} 56... Kf7
{[%clk 0:00:07.8]} 57. d4 {[%clk 0:00:04.9]} 57... Ke6 {[%clk 0:00:07.6]} 58.
Kd3 {[%clk 0:00:05.1]} 58... Kd7 {[%clk 0:00:07.7]} 59. Kc4 {[%clk 0:00:05]}
59... h4 {[%clk 0:00:08]} 60. Ng4 {[%clk 0:00:03]} 60... Re4 {[%clk 0:00:07.6]}
61. Kd5 {[%clk 0:00:02.8]} 61... Re2 {[%clk 0:00:07.2]} 62. Ne5+ {[%clk
0:00:03.7]} 62... Kc7 {[%clk 0:00:07.3]} 63. Nf3 {[%clk 0:00:03.3]} 63... Rxg2
{[%clk 0:00:07.6]} 64. Nxh4 {[%clk 0:00:03.9]} 64... Rh2 {[%clk 0:00:07.6]} 65.
Ng6 {[%clk 0:00:03.3]} 65... Rxh3 {[%clk 0:00:07.9]} 66. Nf4 {[%clk 0:00:04.2]}
66... Rf3 {[%clk 0:00:08]} 67. Ne6+ {[%clk 0:00:04.5]} 67... Kc8 {[%clk
0:00:08.5]} 68. Kd6 {[%clk 0:00:04.4]} 68... Rf7 {[%clk 0:00:08.5]} 69. d5
{[%clk 0:00:05.1]} 69... Rd7+ {[%clk 0:00:08.4]} 70. Ke5 {[%clk 0:00:05.5]}
70... Ra7 {[%clk 0:00:06.7]} 71. d6 {[%clk 0:00:05.8]} 71... Ra6 {[%clk
0:00:06.5]} 72. Kd5 {[%clk 0:00:05.9]} 72... Kd7 {[%clk 0:00:06]} 73. c6+ {[%clk
0:00:06.2]} 73... Rxc6 {[%clk 0:00:04.3]} 74. Nf8+ {[%clk 0:00:06.2]} 74... Kc8
{[%clk 0:00:04.5]} 75. Kxc6 {[%clk 0:00:07.1]} 1-0